bitfinex-derivatives/quotes_ETHF0:USTF0_20251009
["timestamp","ask_amount","ask_price","bid_price","bid_amount"]
[1759997622794,0.40814,4409.4,4409.1,0.3322]
[1759997622999,0.4416,4409.2,4409.1,0.95576]
[1759997623193,0.4416,4409.2,4409.1,1.18276]
[1759997623501,2.92513493,4409.6,4409.5,1.30122]
[1759997623699,0.00186953,4409.8,4409.7,0.428]
[1759997623899,0.00186953,4409.8,4409.7,0.9872]
[1759997624199,0.21996953,4409.8,4409.7,0.9872]
[1759997624396,0.98521814,4409.8,4409.7,0.9872]
[1759997624593,0.98521814,4409.8,4409.7,0.7602]
[1759997624801,1.20951814,4409.8,4409.7,0.7602]
[1759997625001,0.66776953,4409.8,4409.7,0.3322]
[1759997625196,3.57242271,4409.8,4409.7,0.227]
[1759997625402,4.11434645,4409.8,4409.7,0.5535]
[1759997625796,0.4447,4409.6,4409.5,0.4594]
[1759997626097,4.12878647,4409.6,4409.5,0.6864]
[1759997626399,3.90448647,4409.6,4409.5,0.9032]
[1759997626605,3.90448647,4409.6,4409.5,1.1259]
[1759997626899,0.54195166,4409.6,4409.5,1.1259]
[1759997628504,0.77015166,4409.6,4409.5,1.1259]
[1759997628700,1.21095166,4409.6,4409.5,0.3265]
[1759997628902,1.61906166,4409.6,4409.5,0.5535]
[1759997629209,0.77015166,4409.6,4409.5,1.53762]
[1759997629596,0.54195166,4409.6,4409.5,1.53762]
[1759997630601,0.54195166,4409.6,4409.5,1.31062]
[1759997630803,0.54195166,4409.6,4409.5,1.31492]
[1759997630804,1.39476166,4409.6,4409.5,1.31492]
[1759997631007,1.61906166,4409.6,4409.5,0.6798]
[1759997631199,1.61906166,4409.6,4409.5,0.9068]
[1759997631605,1.39476166,4409.6,4409.5,1.1295]
[1759997631806,4.38796645,4409.6,4409.5,0.9025]
[1759997632106,4.17146645,4409.6,4409.5,1.31062]
[1759997633210,4.38796645,4409.6,4409.5,0.9025]
[1759997633507,0.54195166,4409.6,4409.5,1.31062]
[1759997634110,1.17826166,4409.6,4409.5,1.31062]
[1759997635306,1.17330285,4409.6,4409.5,1.31062]
[1759997635611,1.17330285,4409.6,4409.5,1.53762]
[1759997636109,0.76519285,4409.6,4409.5,1.53762]
[1759997636306,0.18326953,4409.8,4409.7,1.1741]
[1759997636511,0.81955953,4409.8,4409.7,1.1741]
[1759997636708,1.35662465,4409.8,4409.7,1.4011]
[1759997637210,1.57312465,4409.8,4409.7,1.4011]
[1759997637511,1.03605953,4409.8,4409.7,1.4011]
[1759997638003,1.79753242,4409.8,4409.7,0.7703]
[1759997638204,1.79753242,4409.8,4409.7,0.5433]
[1759997638511,4.15522308,4409.8,4409.7,0.5535]
[1759997638707,4.15522308,4409.8,4409.7,0.227]
[1759997639010,0.84826,4409.1,4409.0,0.6669]
[1759997639203,0.84826,4409.1,4409.0,0.8939]
[1759997639412,0.4401,4409.1,4409.0,1.52547]
[1759997640109,0.84826,4409.1,4409.0,1.29847]
[1759997640310,0.84826,4409.1,4409.0,1.52547]
[1759997640510,0.84826,4409.1,4409.0,0.85727]
[1759997640710,0.84826,4409.1,4409.0,1.30207]
[1759997640913,0.84826,4409.1,4409.0,1.52547]
[1759997641108,0.40817,4409.0,4408.9,0.00222414]
[1759997641408,1.07377,4409.0,4408.9,0.54542414]
[1759997641604,1.07377,4409.0,4408.9,0.31842414]
[1759997641605,3.96441091,4409.0,4408.9,0.31842414]
[1759997641805,3.96441091,4409.0,4408.9,0.22922414]
[1759997642106,4.00821091,4409.0,4408.9,0.00222414]
[1759997644512,3.96441091,4409.0,4408.9,0.31842414]
[1759997645412,3.96441091,4409.0,4408.9,0.53622414]
[1759997645610,3.11164091,4409.0,4408.9,1.16780414]
[1759997646213,3.33074091,4409.0,4408.9,1.17140414]
[1759997646411,3.73891091,4409.0,4408.9,1.17140414]
[1759997646813,3.51981091,4409.0,4408.9,1.39480414]
[1759997647117,3.11164091,4409.0,4408.9,1.39480414]
[1759997647714,2.89064091,4409.0,4408.9,1.39480414]
[1759997648018,0.62912,4409.5,4409.4,1.16553]
[1759997648211,0.84822,4409.5,4409.4,1.16553]
[1759997648518,3.79373739,4409.5,4409.4,0.7574]
[1759997648717,3.38561739,4409.5,4409.4,1.16553]
[1759997649616,3.79373739,4409.5,4409.4,1.16553]
[1759997650106,3.79373739,4409.5,4409.4,0.7574]
[1759997650705,3.79373739,4409.5,4409.4,1.16553]
[1759997652016,0.00186953,4409.8,4409.7,0.6259]
[1759997652320,0.22286953,4409.8,4409.7,1.3925]
[1759997652919,0.63095953,4409.8,4409.7,0.7574]
[1759997653117,0.44196953,4409.8,4409.7,1.3925]
[1759997655215,0.44196953,4409.8,4409.7,1.1655]
[1759997655420,1.07555953,4409.8,4409.7,0.534]
[1759997655720,1.07374,4409.3,4409.2,0.72435]
[1759997655918,1.07374,4409.3,4409.2,0.95135]
[1759997656122,0.4401,4409.3,4409.2,1.16915]
[1759997657125,0.4401,4409.3,4409.2,1.39255]
[1759997659521,1.07374,4409.3,4409.2,0.7574]
[1759997659723,2.89452351,4409.3,4409.0,0.3162]
[1759997660024,1.07376,4409.1,4409.0,0.3162]
[1759997660226,1.07376,4409.1,4409.0,0.5432]
[1759997660421,3.96828351,4409.1,4409.0,0.5432]
[1759997660617,1.07377,4409.0,4408.9,0.00222414]
[1759997660825,1.16547,4409.0,4408.9,0.00222414]
[1759997661021,4.13082057,4409.0,4408.9,0.00222414]
[1759997661225,9.13082057,4409.0,4408.9,0.00222414]
[1759997663724,9.66652903,4409.0,4408.9,0.00222414]
[1759997663924,0.6634,4408.0,4407.9,0.1016868]
[1759997664231,0.6634,4408.0,4407.9,0.5099468]
[1759997664528,3.63410565,4408.0,4407.9,0.3388868]
[1759997664734,3.63410565,4408.0,4407.9,0.2496868]
[1759997665026,3.63410565,4408.0,4407.9,0.02475912]
[1759997666122,3.41080565,4408.0,4407.9,0.78215912]
[1759997666829,0.2233,4408.8,4408.5,0.40821]
[1759997667025,0.4401,4408.6,4408.5,1.06781]
[1759997667219,3.38041883,4408.6,4408.5,1.06781]
[1759997667424,3.38041883,4408.6,4408.5,0.6596]
[1759997668324,3.60381883,4408.6,4408.5,0.6596]
[1759997670133,3.38041883,4408.6,4408.5,0.879]
[1759997671124,3.38041883,4408.6,4407.9,0.02475912]
[1759997671125,3.60381883,4408.6,4407.9,0.02475912]
[1759997671434,3.60381883,4408.6,4406.5,40.8]
[1759997671435,0.3254,4407.0,4406.9,0.40836]
[1759997671631,1.15755,4407.0,4406.9,0.2249]
[1759997671831,4.08524613,4407.0,4406.9,0.4443]
[1759997672225,4.08524613,4407.0,4406.8,0.227]
[1759997672226,0.3254,4406.9,4406.8,0.227]
[1759997672420,0.7492,4406.9,4406.8,0.4519]
[1759997672631,0.7492,4406.9,4406.8,0.45450116]
[1759997673032,0.7492,4406.9,4406.4,0.40841]
[1759997673033,0.4238,4405.9,4405.8,0.2249]
[1759997673228,0.4238,4405.9,4404.7,2.84054997]
[1759997673229,0.62002,4406.3,4406.2,0.4443]
[1759997673433,0.62002,4406.3,4406.2,0.7562]
[1759997673627,0.83222,4406.3,4406.2,0.7562]
[1759997673823,4.17258712,4406.3,4406.2,0.7562]
[1759997674027,4.17465605,4406.3,4406.2,0.7659208]
[1759997674229,3.76623605,4406.3,4406.2,0.7659208]
[1759997674729,3.76623605,4406.3,4406.2,0.7583208]
[1759997674931,3.76623605,4406.3,4406.2,0.0021208]
[1759997675132,3.76623605,4406.3,4406.2,0.2270208]
[1759997675430,3.76623605,4406.3,4406.2,0.5389208]
[1759997676132,3.76623605,4406.3,4406.2,0.2270208]
[1759997676330,3.76623605,4406.3,4406.2,0.7583208]
[1759997676532,3.44083605,4406.3,4406.2,0.7583208]
[1759997676730,3.76623605,4406.3,4406.2,0.7583208]
[1759997677130,3.76623605,4406.3,4406.2,0.9853208]
[1759997677633,3.76623605,4406.3,4406.2,0.3140208]
[1759997677833,3.76623605,4406.3,4406.2,0.0021208]
[1759997678437,3.76623605,4406.3,4406.2,0.5389208]
[1759997678842,3.76623605,4406.3,4406.2,0.0021208]
[1759997680438,3.76623605,4406.3,4406.2,0.5389208]
[1759997681140,3.76623605,4406.3,4406.2,0.0021208]
[1759997681838,3.76623605,4406.3,4406.2,0.2270208]
[1759997682036,3.76623605,4406.3,4406.2,0.5389208]
[1759997682235,3.76623605,4406.3,4406.2,0.0021208]
[1759997682840,3.76623605,4406.3,4406.2,0.2270208]
[1759997683438,3.76623605,4406.3,4406.2,0.0021208]
[1759997687041,4.17465605,4406.3,4406.2,0.0021208]
[1759997689148,4.40165605,4406.3,4406.2,0.0021208]
[1759997690940,4.17465605,4406.3,4406.2,0.0021208]
[1759997691141,4.40165605,4406.3,4406.2,0.0021208]
[1759997693244,3.76623605,4406.3,4406.2,0.2252208]
[1759997693550,4.17465605,4406.3,4406.2,0.5523208]
[1759997693844,4.17465605,4406.3,4406.2,0.0021208]
[1759997698446,4.17465605,4406.3,4406.2,0.2252208]
[1759997698644,4.17465605,4406.3,4406.2,0.5679208]
[1759997699153,4.17465605,4406.3,4406.2,0.7852208]
[1759997699346,4.17465605,4406.3,4406.2,0.0021208]
[1759997700452,4.71142434,4406.3,4406.2,0.0021208]
[1759997700955,4.93842434,4406.3,4406.2,0.0021208]
[1759997702058,3.76540434,4406.3,4406.2,0.4380208]
[1759997702257,0.84768893,4406.3,4406.2,0.7807208]
[1759997702557,0.4372,4405.3,4405.2,0.5613]
[1759997702856,0.4372,4405.3,4405.2,1.18712]
[1759997703559,0.4372,4405.3,4405.2,1.18980377]
[1759997703756,0.2235,4405.3,4405.2,6.18980377]
[1759997704464,0.7521,4405.3,4405.2,0.63820377]
[1759997704658,1.16061,4405.3,4405.2,0.56398377]
[1759997705360,0.7521,4405.3,4405.2,0.78128377]
[1759997705560,0.7521,4405.3,4405.2,0.56398377]
[1759997705760,0.7521,4405.3,4405.2,0.34538377]
[1759997705961,0.7521,4405.3,4405.2,0.00268377]
[1759997706360,0.7521,4405.3,4405.2,0.56398377]
[1759997706561,0.7521,4405.3,4405.2,0.78128377]
[1759997706758,0.4372,4405.3,4405.2,0.78128377]
[1759997706963,0.17047937,4405.5,4405.4,0.7786]
[1759997707663,0.17047937,4405.5,4405.4,5.7786]
[1759997709165,0.84563,4406.2,4406.1,0.2186]
[1759997709465,1.16053,4406.2,4406.1,0.2186]
[1759997709660,1.16055,4406.0,4405.9,0.227]
[1759997710265,0.7521,4406.0,4405.9,1.0056]
[1759997710461,0.2235,4406.0,4405.9,1.0056]
[1759997710661,0.31696893,4406.3,4405.9,0.227]
[1759997710959,0.7521,4406.0,4405.9,0.7883]
[1759997711368,0.4372,4406.0,4405.9,1.0056]
[1759997711569,0.00206893,4406.3,4406.2,1.18703]
[1759997712268,0.2235,4406.9,4406.8,1.18697]
[1759997712463,0.3149,4407.4,4407.3,0.2186]
[1759997712464,1.16043,4407.4,4407.3,0.2186]
[1759997712669,1.16043,4407.4,4407.3,0.7786]
[1759997712868,4.08675864,4407.4,4407.3,0.7786]
[1759997713071,4.08675864,4407.4,4407.3,0.5613]
[1759997713265,1.16044,4407.1,4407.0,0.6966]
[1759997713766,0.4372,4407.1,4407.0,0.9139]
[1759997714072,0.2235,4407.1,4407.0,0.9139]
[1759997714262,0.00246497,4407.4,4407.3,0.7786]
[1759997714466,0.22596497,4407.4,4407.3,0.7786]
[1759997714863,0.43966497,4407.4,4407.3,0.7786]
[1759997715664,0.00246497,4407.4,4407.3,0.7786]
[1759997716464,0.22596497,4407.4,4407.3,0.7786]
[1759997717961,0.22596497,4407.4,4406.6,2.6481861]
[1759997717962,0.3149,4406.7,4406.6,1.6272161]
[1759997718168,0.2235,4405.8,4405.7,0.7786]
[1759997718470,0.2235,4406.1,4406.0,0.7786]
[1759997718660,2.98337631,4406.7,4406.0,0.7786]
[1759997718661,0.40838,4406.8,4406.7,0.2186]
[1759997718858,0.2235,4406.8,4406.7,0.7786]
[1759997719064,3.17549602,4406.8,4406.7,0.7786]
[1759997719265,0.2235,4406.8,4406.7,0.7786]
[1759997719467,0.1815,4406.9,4406.8,0.3427]
[1759997719772,0.405,4406.9,4406.8,0.7786]
[1759997720765,0.00572857,4406.9,4406.8,5.7786]
[1759997721266,0.00246497,4407.4,4407.3,0.7786]
[1759997721466,0.00246497,4407.4,4407.3,1.0066]
[1759997721771,0.22596497,4407.4,4407.3,1.0066]
[1759997722064,0.75456497,4407.4,4407.3,1.0066]
[1759997724071,1.16288497,4407.4,4407.3,1.0066]
[1759997724369,0.75456497,4407.4,4407.3,1.0066]
[1759997724764,0.43966497,4407.4,4407.3,1.0066]
[1759997725068,0.00246497,4407.4,4407.3,1.0066]
[1759997725965,0.00246497,4407.4,4407.3,0.7786]
[1759997726167,0.75456497,4407.4,4407.3,1.0066]
[1759997726670,0.75456497,4407.4,4407.3,0.7786]
[1759997726973,0.75456497,4407.4,4407.3,0.4466]
[1759997727667,0.75456497,4407.4,4407.3,1.0066]
[1759997728568,0.75456497,4407.4,4407.3,0.7893]
[1759997728871,0.4405,4407.0,4406.9,0.3316]
[1759997729073,0.7844,4407.0,4406.9,0.7838]
[1759997729570,0.7844,4407.0,4406.9,0.9981]
[1759997730168,0.4405,4407.0,4406.9,0.9981]
[1759997730369,0.2209,4407.0,4406.9,0.9981]
[1759997730763,0.00246497,4407.4,4407.3,1.17843]
[1759997730970,0.00246497,4407.4,4407.3,0.7701]
[1759997731168,0.40834,4407.1,4407.0,0.3547]
[1759997731371,1.19274,4407.1,4407.0,0.7838]
[1759997731875,1.19274,4407.1,4407.0,0.4522]
[1759997732072,1.19274,4407.1,4406.4,0.3316]
[1759997732073,0.3439,4406.7,4406.4,0.3316]
[1759997732271,0.1297,4407.0,4406.3,1.0324]
[1759997732272,0.7844,4406.4,4406.3,1.0324]
[1759997732477,0.7844,4406.4,4406.3,1.2604]
[1759997732778,0.7844,4406.4,4406.3,0.9981]
[1759997732974,1.19281,4406.4,4406.3,0.9981]
[1759997733176,1.19284,4406.1,4406.0,0.5558]
[1759997733467,1.19284,4406.1,4406.0,0.9981]
[1759997733673,4.18917673,4406.1,4406.0,0.9981]
[1759997733973,3.43683673,4406.1,4406.0,1.53705]
[1759997734279,0.2209,4406.1,4406.0,1.53705]
[1759997734472,0.2209,4406.1,4406.0,1.1286]
[1759997734473,0.84894,4406.1,4406.0,1.1286]
[1759997734678,1.19284,4406.1,4406.0,0.9981]
[1759997735072,1.19284,4406.1,4406.0,0.5558]
[1759997735271,1.19284,4406.1,4406.0,0.9981]
[1759997735981,1.19284,4406.1,4406.0,0.7701]
[1759997736187,0.84897,4405.8,4405.7,1.1514]
[1759997736375,1.19287,4405.8,4405.7,1.3794]
[1759997736876,1.19287,4405.8,4405.7,1.1552]
[1759997737180,1.19287,4405.8,4405.7,0.228]
[1759997737689,1.19287,4405.8,4405.7,0.4522]
[1759997737979,1.19287,4405.8,4405.7,0.7838]
[1759997738283,1.19287,4405.8,4405.7,0.5558]
[1759997738682,1.19287,4405.8,4405.6,0.228]
[1759997738881,0.7844,4405.3,4405.2,0.00268377]
[1759997739283,3.75383538,4405.3,4405.2,0.22688377]
[1759997739576,3.75383538,4405.3,4405.2,0.77278377]
[1759997740378,0.2209,4405.4,4405.3,0.3316]
[1759997740677,0.2209,4405.4,4405.3,0.7701]
[1759997740883,0.7844,4405.4,4405.3,0.7701]
[1759997743584,0.7844,4405.4,4405.3,0.5558]
[1759997743787,0.7844,4405.4,4405.3,0.3316]
[1759997743980,0.84651,4405.3,4405.2,0.00268377]
[1759997744277,1.16281,4405.3,4405.2,0.00268377]
[1759997744483,4.06948501,4405.3,4405.2,0.00268377]
[1759997745078,0.633,4404.3,4404.2,0.3314]
[1759997745275,1.02175,4403.3,4401.6,0.18538167]
[1759997745477,1.02175,4403.3,4396.5,0.00681496]
[1759997745478,3.768,4402.8,4398.0,0.1248]
[1759997745677,3.768,4402.8,4396.5,0.00681496]
[1759997745678,10.23172,4397.2,4396.5,0.1248]
[1759997745978,0.40941,4395.6,4395.5,0.1248]
[1759997746178,0.40941,4395.6,4395.0,0.124]
[1759997746179,0.54945313,4395.6,4395.0,0.124]
[1759997746386,0.54945313,4395.6,4394.0,0.1528]
[1759997746387,5.5474255,4395.5,4394.0,0.1248]
[1759997746677,5.5474255,4395.5,4393.2,0.1248]
[1759997746678,2.83899058,4394.9,4393.2,0.1248]
[1759997746883,1.98781944,4394.1,4393.8,0.1248]
[1759997747073,0.7754255,4394.0,4393.2,0.1248]
[1759997747278,0.40961,4393.5,4391.1,0.066]
[1759997747478,0.40961,4393.5,4391.0,0.00438074]
[1759997747479,0.5474255,4393.4,4393.2,0.1248]
[1759997747681,10.24142,4393.1,4391.4,0.1248]
[1759997747881,10.24621,4391.0,4387.8,0.1248]
[1759997748081,2.76385125,4392.6,4386.0,0.1248]
[1759997748082,0.41022,4387.0,4386.0,0.1248]
[1759997748280,0.41022,4387.0,4379.7,35.425]
[1759997748281,10.2617,4384.4,4381.1,0.3314]
[1759997748484,0.41055,4383.5,4383.0,0.1248]
[1759997748685,10.26279,4383.9,4382.0,0.1248]
[1759997748686,10.26489,4383.0,4382.0,0.1248]
[1759997748880,1.18406337,4382.4,4382.1,0.3314]
[1759997749086,0.80078166,4382.3,4382.2,41.1314]
[1759997749283,1.16113291,4383.9,4382.2,0.00182841]
[1759997749485,0.62866073,4383.8,4383.5,0.1248]
[1759997749682,1.57875116,4385.2,4384.6,0.1248]
[1759997749887,2.76385125,4386.5,4385.8,0.3314]
[1759997750087,1.93533214,4386.1,4385.8,0.3314]
[1759997750284,5.27241108,4387.3,4385.7,0.1248]
[1759997750285,1.53720472,4387.0,4386.0,0.3314]
[1759997750489,1.53720472,4387.4,4383.4,10.26374]
[1759997750687,1.53720472,4387.4,4384.8,0.1248]
[1759997750688,2.47332068,4386.0,4384.8,0.1248]
[1759997750886,0.001983,4387.4,4384.8,0.1248]
[1759997750887,0.001983,4387.4,4384.9,40.8]
[1759997751200,0.001983,4387.4,4384.8,0.1248]
[1759997751383,0.001983,4387.4,4386.0,0.1248]
[1759997752085,0.4106,4382.9,4381.2,0.1248]
[1759997752286,0.191,4385.8,4381.2,0.1368]
[1759997752590,0.229,4386.8,4385.0,40.8]
[1759997752889,3.00776621,4385.7,4385.1,0.641]
[1759997753082,2.90332252,4386.6,4385.2,0.3314]
[1759997753289,0.41018,4387.4,4385.3,0.229]
[1759997753484,0.41014,4387.9,4385.4,0.229]
[1759997753686,10.24923,4389.7,4385.6,0.3314]
[1759997753888,36.51958,4391.2,4386.1,0.3314]
[1759997753889,10.25003,4389.4,4386.1,0.3314]
[1759997754084,0.00272382,4389.4,4386.1,0.3314]
[1759997754486,10.25104,4389.0,4386.2,0.026]
[1759997754690,0.00272382,4389.4,4386.3,0.3314]
[1759997754990,0.00272382,4389.4,4386.0,0.1248]
[1759997754991,0.18620599,4390.5,4388.5,0.3314]
[1759997755289,0.18086349,4390.8,4388.5,0.3314]
[1759997755497,0.40991,4390.4,4388.7,0.3314]
[1759997755787,0.40989,4390.5,4388.7,0.3314]
[1759997755991,2.9731508,4391.5,4389.7,0.3314]
[1759997756184,0.229,4391.7,4389.7,0.3604]
[1759997756385,2.91237377,4390.6,4389.7,0.3314]
[1759997756583,2.91237377,4391.4,4389.9,0.3314]
[1759997756894,0.3163,4393.6,4391.0,0.40984]
[1759997757083,0.00294893,4393.6,4391.2,0.3314]
[1759997757287,0.31924893,4393.6,4391.2,0.3314]
[1759997757489,0.40964,4393.2,4391.2,0.3574]
[1759997757791,0.31924893,4393.6,4391.2,0.3314]
[1759997757792,0.40967,4392.9,4391.2,0.3314]
[1759997757998,0.40974,4392.2,4391.4,0.3314]
[1759997758295,2.95250727,4392.1,4390.9,40.8]
[1759997758490,0.40976,4391.9,4390.9,40.8]
[1759997758690,0.3163,4392.5,4390.9,40.8]
[1759997758691,0.40978,4391.7,4390.9,40.8]
[1759997758892,3.36227727,4391.8,4390.9,40.8]
[1759997759094,10.24523,4391.4,4389.6,1.6591]
[1759997759396,0.40983,4391.2,4389.6,1.5343]
[1759997759595,2.99003091,4391.3,4389.8,1.5343]
[1759997759995,1.4734,4392.0,4389.8,1.5343]
[1759997759996,2.99003091,4391.5,4389.9,0.229]
[1759997760193,1.4734,4392.9,4390.2,1.5343]
[1759997760401,10.23809,4394.5,4390.2,1.5343]
[1759997760402,0.00294893,4393.6,4390.3,11.78203]
[1759997760700,10.24064,4393.4,4390.3,0.4099]
[1759997760903,0.40962,4393.4,4391.1,0.40982]
[1759997761094,0.40964,4393.2,4391.4,1.5343]
[1759997761402,0.00294893,4393.6,4391.4,1.5343]
[1759997761596,0.40968,4392.8,4391.6,1.5343]
[1759997761899,10.24255,4392.6,4391.2,2.1408]
[1759997762195,0.40977,4391.9,4390.9,0.222]
[1759997762388,1.4734,4393.3,4389.9,35.522]
[1759997762389,0.40971,4392.4,4391.0,0.222]
[1759997762589,0.40971,4392.4,4389.0,11.88231]
[1759997762590,10.24108,4393.2,4391.7,40.8]
[1759997762790,0.40976,4391.9,4391.7,40.8]
[1759997762992,1.02425,4392.6,4389.0,0.6065]
[1759997762993,2.92074427,4392.3,4389.0,0.6065]
[1759997763193,1.02425,4392.6,4390.8,0.229]
[1759997763393,0.40953,4394.4,4392.3,0.6065]
[1759997763593,1.4734,4395.1,4392.4,40.549]
[1759997763894,10.2388,4394.2,4393.3,40.8]
[1759997764102,0.40966,4393.0,4392.3,0.23091066]
[1759997764400,0.4097,4392.5,4392.3,0.00191066]
[1759997764590,0.4097,4392.5,4392.4,40.8]
[1759997764791,0.41262762,4392.5,4392.4,40.8]
[1759997764990,0.00292762,4392.5,4392.4,40.8]
[1759997765195,0.00292762,4392.5,4392.3,0.23091066]
[1759997765389,1.47632762,4392.5,4392.3,0.00191066]
[1759997765596,4.3899925,4392.4,4392.3,0.00191066]
[1759997766093,4.3899925,4392.4,4389.5,0.40997]
[1759997766094,0.40985,4391.0,4389.5,0.40997]
[1759997766293,2.0919,4392.3,4389.6,0.229]
[1759997766498,0.40974,4392.2,4390.3,0.0744]
[1759997766700,0.40976,4392.0,4390.5,0.40989]
[1759997766895,0.40984,4391.0,4390.3,0.0744]
[1759997767093,0.40989,4390.5,4390.3,0.00226495]
[1759997767299,1.4734,4390.4,4390.3,0.00226495]
[1759997767498,1.4734,4391.3,4390.3,0.00226495]
[1759997767708,0.4098,4391.6,4390.3,0.41216495]
[1759997768003,0.4098,4391.6,4387.6,1.0998]
[1759997768004,1.4734,4390.0,4387.6,1.0998]
[1759997768200,1.4734,4390.0,4387.6,0.0744]
[1759997768404,2.90709952,4389.9,4388.7,0.0744]
[1759997768601,2.90709952,4389.9,4389.0,0.41002]
[1759997768801,1.88334,4390.0,4389.0,0.00260703]
[1759997769003,0.6185,4390.1,4389.0,0.00260703]
[1759997769004,2.91337698,4389.9,4389.0,0.00260703]
[1759997769296,1.4734,4389.1,4389.0,0.00260703]
[1759997769503,2.91337698,4390.0,4389.0,0.07700703]
[1759997769699,0.40991,4390.4,4389.1,0.23]
[1759997769896,1.88327,4390.8,4389.1,0.23]
[1759997770095,2.98579435,4390.7,4389.1,0.23]
[1759997770295,1.4734,4390.8,4389.8,0.40995]
[1759997770600,0.00212334,4390.8,4389.9,0.23]
[1759997770903,0.00212334,4390.8,4390.6,0.40987]
[1759997771096,0.00212334,4390.8,4390.4,0.4099]
[1759997771295,0.00212334,4390.8,4390.7,0.0744]
[1759997771598,0.6185,4392.3,4390.7,0.3044]
[1759997771805,1.4734,4392.1,4390.0,0.40993]
[1759997772098,1.4734,4391.4,4390.7,0.40986]
[1759997772302,1.4734,4391.4,4390.3,0.4099]
[1759997772504,0.40982,4391.2,4390.2,40.8]
[1759997772799,0.40982,4391.2,4389.8,0.40995]
[1759997772800,1.4734,4391.0,4389.8,0.40995]
[1759997772999,0.73948328,4390.9,4389.7,0.23]
[1759997773202,0.74109613,4390.8,4390.3,0.4099]
[1759997773397,0.74109613,4390.7,4390.5,0.40988]
[1759997773597,0.74109613,4390.6,4390.4,0.40989]
[1759997773793,0.74109613,4390.6,4389.8,40.8]
[1759997773794,1.4734,4391.0,4390.6,0.40987]
[1759997774000,0.62077503,4391.2,4390.8,0.40986]
[1759997774001,0.74115695,4390.9,4390.8,0.40986]
[1759997774399,0.74115695,4390.9,4390.8,5.40986]
[1759997774705,0.74115695,4390.9,4390.7,0.40986]
[1759997774908,0.74115695,4390.8,4390.7,0.40986]
[1759997775105,0.74115695,4390.8,4390.7,0.48426]
[1759997775305,0.74115695,4390.8,4390.7,5.48426]
[1759997775609,0.74115695,4390.8,4390.7,5.40986]
[1759997775808,0.74115695,4390.8,4390.7,46.43986]
[1759997776105,1.1869257,4391.9,4391.2,1.02455]
[1759997776409,0.1821,4392.0,4391.9,0.40976]
[1759997776800,0.1821,4392.0,4391.7,0.40977]
[1759997777007,0.1821,4392.0,4391.0,0.40984]
[1759997777008,1.4734,4391.8,4391.0,0.40984]
[1759997777308,1.4734,4391.8,4390.7,0.23]
[1759997777309,0.40981,4391.4,4390.4,0.40989]
[1759997777612,3.30880681,4391.7,4390.9,0.40985]
[1759997777810,0.00238848,4391.8,4391.0,0.23]
[1759997778008,0.00238848,4391.8,4391.1,0.40983]
[1759997778316,0.00238848,4391.8,4391.6,0.40978]
[1759997778715,0.40963,4393.3,4392.6,0.40969]
[1759997778919,0.6185,4393.4,4392.4,0.229]
[1759997779120,0.6185,4393.4,4392.5,0.4097]
[1759997779318,0.6185,4393.4,4392.6,41.20969]
[1759997779616,1.4734,4392.7,4392.6,0.00180222]
[1759997780020,4.4450695,4392.7,4392.6,0.00180222]
[1759997780517,0.40966,4393.0,4392.6,0.00180222]
[1759997780819,0.40978,4391.7,4390.2,1.02478]
[1759997781118,2.99742567,4392.7,4390.8,0.229]
[1759997781119,0.4098,4391.5,4390.8,0.229]
[1759997781319,0.4098,4391.5,4390.9,0.229]
[1759997781715,0.40984,4391.0,4390.9,0.00286354]
[1759997781920,0.4099,4390.4,4388.8,35.529]
[1759997782116,4.39942229,4391.0,4387.1,1.60898857]
[1759997782312,4.39942229,4391.0,4387.0,10.25536]
[1759997782313,0.40999,4389.5,4388.8,0.41005]
[1759997782513,0.40999,4389.5,4388.9,0.229]
[1759997782915,0.00234351,4389.5,4388.9,0.23147036]
[1759997783121,0.00234351,4389.5,4389.0,0.41003]
[1759997783317,1.6381,4390.6,4389.0,0.41003]
[1759997783318,0.40987,4390.8,4389.2,0.41001]
[1759997783523,0.40987,4390.8,4389.1,1.02504]
[1759997783524,1.4091,4391.2,4389.1,5.0]
[1759997783818,0.40981,4391.4,4390.6,0.40987]
[1759997784125,1.4091,4391.8,4391.1,0.40983]
[1759997784126,1.81887,4391.8,4391.1,0.40983]
[1759997784317,1.82080461,4391.8,4391.1,0.40983]
[1759997784516,0.40978,4391.7,4391.0,0.071]
[1759997784825,0.40981,4391.4,4391.0,0.071]
[1759997785121,0.40981,4391.4,4389.2,10.25025]
[1759997785122,1.4091,4391.2,4391.1,40.8]
[1759997785317,1.4091,4391.2,4388.8,2.63410857]
[1759997785318,0.5822,4391.1,4390.1,0.229]
[1759997785517,1.02449,4391.6,4389.1,35.532]
[1759997785518,0.00193461,4391.8,4390.2,0.229]
[1759997785723,0.00193461,4391.8,4389.6,1.02492]
[1759997785724,0.4098,4391.5,4390.8,0.40986]
[1759997786024,0.40981,4391.4,4390.3,41.029]
[1759997786219,0.00193461,4391.8,4390.4,1.02474]
[1759997786422,0.00193461,4391.8,4390.5,1.02472]
[1759997786620,0.00193461,4391.8,4390.6,1.0247]
[1759997786819,0.00193461,4391.8,4391.6,0.40978]
[1759997787014,0.00193461,4391.8,4391.7,0.229]
[1759997787422,0.00193461,4391.8,4390.3,41.82476]
[1759997787423,0.00193461,4391.8,4390.0,1.02483]
[1759997787724,0.4098,4391.5,4390.8,0.40986]
[1759997787923,0.40981,4391.4,4391.0,40.8]
[1759997788124,0.00193461,4391.8,4391.1,0.229]
[1759997788327,0.40982,4391.3,4391.1,0.229]
[1759997788623,0.40982,4391.3,4391.2,0.229]
[1759997788818,0.00193461,4391.8,4390.9,0.229]
[1759997789024,0.40984,4391.1,4390.9,0.229]
[1759997789218,0.40984,4391.1,4390.9,41.029]
[1759997789425,1.82334,4391.1,4390.9,41.029]
[1759997790326,0.40986,4390.8,4390.2,0.40991]
[1759997790520,0.40986,4390.8,4390.3,0.229]